fUSD/lending_fUSD_20250906
["ID","MTS","AMOUNT","RATE_DAILY","PERIOD"]
[383890413,1757160639550,-1189.21,0.00044479,30]
[383890414,1757160639559,-155.77,0.00044479,30]
[383890415,1757160639570,-409.88,0.00044479,30]
[383890416,1757160639580,-156.13,0.00044479,30]
[383890417,1757160639589,-297.0,0.00044479,30]
[383890418,1757160639599,-1189.21,0.00044479,30]
[383890419,1757160639609,-409.88,0.00044479,30]
[383890420,1757160639619,-541.44,0.00044479,30]
[383890421,1757160639628,-166.62,0.00044479,30]
[383890422,1757160639638,-150.0,0.00044479,30]
[383890424,1757160639647,-150.0,0.00044479,30]
[383890426,1757160639657,-150.0,0.00044479,30]
[383890428,1757160639666,-150.0,0.00044479,30]
[383890430,1757160639676,-174.35,0.00044479,30]
[383890432,1757160639686,-150.0,0.00044479,30]
[383890434,1757160639696,-150.0,0.00044479,30]
[383890436,1757160639706,-541.44,0.00044479,30]
[383890438,1757160639716,-174.35,0.00044479,30]
[383890440,1757160639725,-150.0,0.00044479,30]
[383890442,1757160639735,-150.0,0.00044479,30]
[383890444,1757160639745,-166.62,0.00044479,30]
[383890446,1757160639755,-1189.21,0.00044479,30]
[383890448,1757160639764,-409.88,0.00044479,30]
[383890450,1757160639774,-150.0,0.00044479,30]
[383890452,1757160639783,-541.44,0.00044479,30]
[383890454,1757160639796,-150.0,0.00044479,30]
[383890456,1757160639806,-748.94,0.00044479,30]
[383890458,1757160639815,-174.35,0.00044479,30]
[383890460,1757160639825,-164.67,0.00044479,30]
[383890462,1757160639835,-150.0,0.00044479,30]
[383890464,1757160639844,-65.73739104,0.00044479,30]
[383890469,1757160639884,-344.14260896,0.00044479,30]
[383890471,1757160639893,-150.0,0.00044479,30]
[383890473,1757160639902,-150.0,0.00044479,30]
[383890475,1757160639912,-150.0,0.00044479,30]
[383890477,1757160639921,-541.44,0.00044479,30]
[383890479,1757160639931,-150.0,0.00044479,30]
[383890480,1757160639940,-150.0,0.00044479,30]
[383890482,1757160639950,-408.93,0.00044479,30]
[383890484,1757160639961,-541.44,0.00044479,30]
[383890486,1757160639971,-1082.88,0.00044479,30]
[383890488,1757160639980,-150.0,0.00044479,30]
[383890491,1757160639990,-174.35,0.00044479,30]
[383890492,1757160639999,-166.62,0.00044479,30]
[383890495,1757160640009,-541.44,0.00044479,30]
[383890497,1757160640018,-150.0,0.00044479,30]
[383890499,1757160640027,-409.88,0.00044479,30]
[383890501,1757160640037,-166.62,0.00044479,30]
[383890503,1757160640046,-252.74780321,0.00044479,30]
[383890522,1757160640228,-288.69219679,0.00044479,30]
[383890524,1757160640237,-174.35,0.00044479,30]
[383890526,1757160640246,-150.0,0.00044479,30]
[383890528,1757160640255,-409.88,0.00044479,30]
[383890530,1757160640264,-166.62,0.00044479,30]
[383890532,1757160640273,-150.0,0.00044479,30]
[383890534,1757160640283,-174.35,0.00044479,30]
[383890536,1757160640292,-409.88,0.00044479,30]
[383890538,1757160640302,-541.44,0.00044479,30]
[383890540,1757160640311,-174.35,0.00044479,30]
[383890542,1757160640320,-541.44,0.00044479,30]
[383890544,1757160640329,-166.62,0.00044479,30]
[383890546,1757160640339,-409.88,0.00044479,30]
[383890548,1757160640348,-150.0,0.00044479,30]
[383890550,1757160640358,-409.88,0.00044479,30]
[383890552,1757160640368,-541.44,0.00044479,30]
[383890554,1757160640378,-174.35,0.00044479,30]
[383890556,1757160640387,-421.52,0.00044479,30]
[383890558,1757160640396,-174.35,0.00044479,30]
[383890560,1757160640405,-541.44,0.00044479,30]
[383890562,1757160640415,-174.35,0.00044479,30]
[383890564,1757160640425,-174.35,0.00044479,30]
[383890565,1757160640437,-174.35,0.00044479,30]
[383890567,1757160640447,-174.35,0.00044479,30]
[383890569,1757160640456,-318.96,0.00044505,30]
[383890571,1757160640465,-588.26971606,0.00044537,120]
[383890573,1757160640474,-500.0,0.00044622,30]
[383890575,1757160640483,-400.0,0.00044657,120]
[383890577,1757160640493,-631.0,0.000448,120]
[383890579,1757160640502,-176.28594976,0.00044879,120]
[383890581,1757160640511,-169.07518746,0.00044879,120]
[383890583,1757160640520,-171.96362996,0.00044879,120]
[383890585,1757160640530,-6863.75352518,0.0004488,10]
[383890599,1757160640651,-2090.40897658,0.0004488,10]
[383890813,1757160642730,-151.0,0.00043099,5]
[383890815,1757160642740,-201.24514134,0.0004488,10]
[383890817,1757160642751,-295.11892219,0.0004488,10]
[383890820,1757160642762,-797.52531506,0.0004488,10]
[383890822,1757160642772,-103.61468494,0.00044899,2]
[383890824,1757160642783,-1479.41496,0.00044899,2]
[383890826,1757160642800,-916.97035506,0.00044899,2]
[383890853,1757160643028,-148.33730653,0.000449,6]
[383890859,1757160643087,-2351.66269347,0.000449,6]
[383890861,1757160643097,-2500.0,0.000449,6]
[383890863,1757160643107,-324.59689578,0.000449,17]
[383890864,1757160643115,-937.70955075,0.000449,120]
[383890865,1757160643126,-1749.85,0.000449,120]
[383891077,1757160645478,-37.89992544,0.0004077,30]
[383891080,1757160645497,-562.36007456,0.0004077,30]
[383891082,1757160645506,-182.03906812,0.000449,120]
[383891117,1757160645827,-1651.570308,0.000449,120]
[383891557,1757160650441,404.04219696,0.000249,2]
[383891563,1757160650484,404.04219676,0.00027827,8]
[383891568,1757160650521,404.04219676,0.00030754,14]
[383891573,1757160650562,404.04219676,0.00033682,21]
[383891580,1757160650620,404.04219676,0.00036609,27]
[383893177,1757160739147,500.0,0.00037251,7]
[383893178,1757160896538,1622.03,0.00038425,30]
[383893179,1757160966533,195.0,0.0002739,120]
[383893180,1757160967456,2463.0,0.0002739,120]
[383893181,1757161023409,195.0,0.0002739,120]
[383893182,1757161028013,300.0,0.0002739,120]
[383893183,1757161028166,300.0,0.00026364,120]
[383893184,1757161088547,300.0,0.0002739,120]
[383893185,1757161089050,300.0,0.00025632,120]
[383893186,1757161089201,300.0,0.00027447,120]
[383893187,1757161089366,300.0,0.00027447,120]
[383893188,1757161089529,300.0,0.00027447,120]
[383893189,1757161232105,-152.44,0.00020183,2]
[383893190,1757161232125,-195.0,0.00020688,2]
[383893191,1757161232145,-500.0,0.00021192,2]
[383893192,1757161232165,-170.56,0.00021639,2]
[383893193,1757161302441,-24.44,0.00021639,2]
[383893195,1757161516335,-164.68186064,0.00018369,2]
[383893204,1757161627092,-48.31813936,0.00018369,2]
[383893205,1757161627114,-258.90832416,0.000199,2]
[383893206,1757161627147,-2024.89897132,0.000199,2]
[383893208,1757161639166,-5937.85070152,0.000199,2]
[383893209,1757161639187,-1200.0,0.00019999,2]
[383893210,1757161639209,-6060.97437949,0.0002,2]
[383893215,1757161650095,-2328.13157092,0.0002,2]
[383893234,1757161725602,351.28714747,0.00038426,120]
[383893236,1757161737024,1500.0,0.00038426,120]
[383893239,1757161751107,-27549.16808,0.0002,2]
[383893240,1757161753089,-4731.48331804,0.0002,2]
[383893241,1757161753122,-122.16813091,0.0002,2]
[383893242,1757161753142,-250.0,0.00020103,2]
[383893243,1757161753163,-500.0,0.00020206,2]
[383893244,1757161753184,-195.0,0.00020206,2]
[383893245,1757161753204,-195.0,0.00020206,2]
[383893246,1757161753225,-1200.0,0.00021777,2]
[383893247,1757161753245,-17035.13907787,0.00022,4]
[383893249,1757161762088,-1562.97248301,0.00022,4]
[383893250,1757161762109,-250.0,0.00022,2]
[383893251,1757161762129,-609.03668,0.00022178,2]
[383893252,1757161762150,-300.0,0.00022184,2]
[383893253,1757161762170,-300.0,0.00023052,2]
[383893254,1757161762192,-159.12551718,0.00024296,2]
[383893255,1757161762215,-250.0,0.00024396,2]
[383893256,1757161762236,-300.0,0.00024396,2]
[383893257,1757161762258,-161.81299918,0.000249,2]
[383893258,1757161762281,-393.2339365,0.000249,2]
[383893259,1757161762302,-393.2339364,0.00027827,8]
[383893260,1757161762322,-1600.0,0.00030752,2]
[383893261,1757161762346,-393.2339364,0.00030754,14]
[383893262,1757161762369,-2981.63202533,0.0003121,2]
[383893263,1757161762390,-300.0,0.00031351,3]
[383893264,1757161762411,-403.067,0.0003151,29]
[383893265,1757161762431,-1812.0,0.00033257,3]
[383893266,1757161764297,-4799.389672,0.00033612,35]
[383893268,1757161771123,-1761.99907394,0.00033612,35]
[383893272,1757161809115,1264.156738,0.00024825,2]
[383893273,1757161809514,1264.156738,0.00028099,2]
[383893274,1757161810162,1264.156738,0.00031374,2]
[383893287,1757161831684,-7179.10125406,0.00033612,35]
[383893288,1757161831693,-250.0,0.00033647,2]
[383893289,1757161831703,-393.2339364,0.00033682,21]
[383893290,1757161831712,-160.0,0.00033985,7]
[383893291,1757161831722,-1264.156738,0.00034648,2]
[383893292,1757161831731,-166.46,0.00035005,2]
[383893293,1757161831740,-161.81299918,0.00035616,2]
[383893294,1757161831750,-155.863598,0.00035616,10]
[383893295,1757161831759,-158.126981,0.00035616,10]
[383893296,1757161831769,-393.2339364,0.00036609,27]
[383893297,1757161831779,-500.0,0.0003681,7]
[383893298,1757161831790,-250.0,0.00036973,2]
[383893299,1757161831799,-300.0,0.00037443,3]
[383893300,1757161831809,-400.0,0.00037443,3]
[383893301,1757161831818,-500.0,0.00037444,7]
[383893302,1757161831828,-711.08445897,0.00037529,4]
[383893303,1757161831838,-500.0,0.00038076,7]
[383893304,1757161831847,-182.04218635,0.00038326,2]
[383893305,1757161831857,-1778.62440308,0.00038355,10]
[383893306,1757161831866,-301.88980846,0.00038355,2]
[383893307,1757161831876,-775.99062452,0.00038426,2]
[383893308,1757161831888,-36729.66916638,0.00038426,2]
[383893309,1757161831900,-340.82543348,0.00038426,2]
[383893311,1757161831959,-0.54011695,0.00038426,2]
[383893312,1757161831970,-380.15953325,0.00038426,2]
[383893313,1757161831982,-1000.0,0.00038426,2]
[383893314,1757161832001,-3037.90060558,0.00038426,2]
[383893315,1757161832012,-311.23978265,0.00038426,2]
[383893316,1757161832031,-5205.15429748,0.00038426,2]
[383893317,1757161832043,-523.52401027,0.00038426,2]
[383893320,1757161832066,-360.2531425,0.00038426,2]
[383893329,1757161837593,-476.3,0.00038426,2]
[383893330,1757161837662,-979.68276412,0.00038426,2]
[383893332,1757161839754,-5680.49041217,0.00038426,2]
[383893333,1757161839843,-594.00247311,0.00038426,2]
[383893337,1757161842724,-34515.26937622,0.00038426,2]
[383893338,1757161842735,-16297.15792701,0.00038426,2]
[383893345,1757161843027,-345.0,0.00038426,2]
[383893411,1757161845717,-7843.03361078,0.00038426,2]
[383893418,1757161891088,337.79283082,0.000249,2]
[383893419,1757161891184,337.79283055,0.00027827,8]
[383893420,1757161891291,337.79283055,0.00030754,14]
[383893465,1757162266488,312.11,0.00030137,120]
[383893474,1757162359091,154.38,0.00017442,2]
[383893475,1757162360741,-152.0,0.00018411,2]
[383893476,1757162364220,-2.38,0.00018411,2]
[383893477,1757162364244,-154.38,0.0001938,2]
[383893489,1757162484628,-200.37095561,0.0001938,2]
[383893490,1757162487262,-191.28485161,0.0001938,2]
[383893491,1757162493651,-813.16795836,0.0001938,2]
[383893492,1757162495864,-159.94,0.0001938,2]
[383893493,1757162497332,-338.64835864,0.0001938,2]
[383893495,1757162502373,-199.84904452,0.0001938,2]
[383893496,1757162503912,-96.73883126,0.0001938,2]
[383893497,1757162503938,-134.3748453,0.0001938,2]
[383893498,1757162506214,-271.06828083,0.0001938,2]
[383893499,1757162508255,-106.79887387,0.0001938,2]
[383893534,1757162759424,-154.38,0.00020349,2]
[383893535,1757162759446,-446.17010198,0.000204,2]
[383893536,1757162759472,-154.38,0.00021318,2]
[383893537,1757162759492,-169.06214572,0.00022283,2]
[383893538,1757162759515,-57.61763658,0.00022287,2]
[383893540,1757162769732,7087.04,0.00038435,30]
[383893546,1757162827089,-96.76236342,0.00022287,2]
[383893547,1757162827111,-500.0,0.00022335,2]
[383893548,1757162827133,-1200.0,0.00022383,2]
[383893549,1757162827153,-300.0,0.00022383,2]
[383893550,1757162827177,-200.0,0.00022383,2]
[383893551,1757162827201,-300.0,0.00022383,2]
[383893552,1757162827222,-250.0,0.00022384,2]
[383893553,1757162827242,-250.0,0.00022384,2]
[383893554,1757162827263,-300.0,0.00022384,2]
[383893555,1757162827283,-300.0,0.00022384,2]
[383893556,1757162827304,-250.0,0.00022384,2]
[383893557,1757162827325,-300.0,0.00022384,2]
[383893558,1757162827346,-335.26321588,0.00022384,2]
[383893559,1757162827367,-429.8181368,0.00022384,2]
[383893560,1757162827389,-154.38,0.00023256,2]
[383893561,1757162827411,-154.38,0.00024225,2]
[383893562,1757162827432,-232.0,0.00024313,2]
[383893563,1757162827453,-420.0,0.00024313,2]
[383893564,1757162827475,-1680.0,0.00024427,2]
[383893565,1757162827495,-500.0,0.00024515,2]
[383893566,1757162827518,-508.9934213,0.000249,2]
[383893567,1757162827541,-154.38,0.00025194,2]
[383893568,1757162827561,-250.0,0.00025672,2]
[383893569,1757162827581,-500.0,0.00025781,2]
[383893570,1757162827602,-154.38,0.00026163,2]
[383893571,1757162827624,-300.0,0.0002641,2]
[383893572,1757162827645,-2351.0,0.00026657,2]
[383893573,1757162827665,-666.0,0.00026868,3]
[383893574,1757162827687,-154.38,0.00027132,2]
[383893575,1757162827709,-508.99342112,0.00027827,8]
[383893576,1757162827729,-160.0,0.00027896,7]
[383893577,1757162827751,-154.38,0.00028101,2]
[383893578,1757162827773,-205.05,0.0002832,2]
[383893579,1757162827797,-154.38,0.0002907,2]
[383893580,1757162827823,-317.71538864,0.00029973,5]
[383893582,1757162839092,-1200.0,0.00022383,2]
[383893583,1757162839114,-216.8435173,0.00023987,2]
[383893584,1757162840090,-289.39643091,0.00023987,2]
[383893587,1757162882404,300.0,0.00026386,120]
[383893588,1757162882552,300.0,0.0002415,120]
[383893590,1757162885438,500.0,0.00026386,120]
[383893604,1757162952284,-555.25124579,0.00023987,2]
[383893605,1757162952305,-211.61029534,0.00023987,2]
[383893606,1757162952327,-835.843262,0.00024023,2]
[383893607,1757162952348,-906.0,0.00024313,2]
[383893608,1757162952371,-487.75773005,0.000249,2]
[383893609,1757162952392,-250.0,0.00026386,2]
[383893610,1757162952415,-835.843262,0.00027214,2]
[383893611,1757162952438,-487.75772993,0.00027827,8]
[383893612,1757162952459,-282.28461136,0.00029973,5]
[383893613,1757162952480,-500.0,0.00029973,5]
[383893614,1757162952501,-500.0,0.00029973,5]
[383893615,1757162952522,-500.0,0.00029973,5]
[383893616,1757162952542,-500.0,0.00029973,5]
[383893617,1757162952562,-2000.0,0.0002998,2]
[383893618,1757162952582,-1100.0,0.0002998,2]
[383893619,1757162952602,-200.0,0.00029981,2]
[383893620,1757162952623,-151.0,0.00029981,2]
[383893621,1757162952644,-151.0,0.00029981,2]
[383893622,1757162952665,-151.0,0.00029981,2]
[383893623,1757162952687,-500.0,0.00029981,2]
[383893624,1757162952707,-151.0,0.00029981,2]
[383893625,1757162952728,-151.0,0.00029981,2]
[383893626,1757162952748,-276.26777575,0.00029981,2]
[383893627,1757162952769,-26.37978188,0.00029981,2]
[383893630,1757162966074,-173.62021812,0.00029981,2]
[383893631,1757162966096,-151.0,0.00029981,2]
[383893632,1757162966118,-151.0,0.00029981,2]
[383893633,1757162966142,-75.36346688,0.00029981,2]
[383893634,1757162969076,-75.63653312,0.00029981,2]
[383893635,1757162969097,-151.0,0.00029981,2]
[383893636,1757162969120,-151.0,0.00029981,2]
[383893637,1757162969141,-137.74124462,0.00029981,2]
[383893638,1757162971144,-13.25875538,0.00029981,2]
[383893639,1757162971166,-151.0,0.00029981,2]
[383893640,1757162971188,-151.0,0.00029981,2]
[383893641,1757162971209,-151.0,0.00029981,2]
[383893642,1757162971231,-151.0,0.00029981,2]
[383893643,1757162971253,-151.0,0.00029981,2]
[383893644,1757162971275,-151.0,0.00029981,2]
[383893645,1757162971296,-151.0,0.00029981,2]
[383893646,1757162971318,-200.0,0.00029981,2]
[383893647,1757162971339,-600.0,0.00029981,2]
[383893648,1757162971360,-600.0,0.00029981,2]
[383893649,1757162971380,-600.0,0.00029981,2]
[383893650,1757162971401,-149.36884613,0.00029981,2]
[383893662,1757163031905,-570.07452639,0.00029973,5]
[383893663,1757163031915,-500.0,0.00029973,5]
[383893664,1757163031924,-504.76404167,0.00029973,2]
[383893665,1757163031934,-500.0,0.00029973,5]
[383893666,1757163031944,-450.63115387,0.00029981,2]
[383893667,1757163031953,-500.0,0.00029999,2]
[383893668,1757163031963,-500.0,0.00029999,2]
[383893669,1757163031973,-500.0,0.00029999,2]
[383893670,1757163031982,-500.0,0.00029999,2]
[383893671,1757163031992,-500.0,0.00029999,2]
[383893672,1757163032002,-200.0,0.00029999,2]
[383893673,1757163032011,-22458.68871777,0.0003,2]
[383893674,1757163032023,-1791.60960142,0.0003,2]
[383893675,1757163032121,-353.337987,0.0003,2]
[383893682,1757163032804,-2334.4286799,0.0003,2]
[383893683,1757163034160,500.0,0.00023887,2]
[383893692,1757163037801,-306.26171225,0.0003,2]
[383893693,1757163038130,-1101.41279251,0.0003,2]
[383893696,1757163040022,-818.06783151,0.0003,2]
[383893699,1757163040339,-585.54289084,0.0003,2]
[383893716,1757163042891,-1110.12,0.0003,2]
[383893717,1757163043103,-1324.54744252,0.0003,2]
[383893718,1757163043158,-1873.19277323,0.0003,2]
[383893719,1757163043215,-12881.77168178,0.0003,2]
[383893720,1757163043227,-437.20012193,0.0003,2]
[383893721,1757163043250,-0.2234857,0.0003,2]
[383893722,1757163043269,-489.29187735,0.0003,2]
[383893723,1757163043281,-870.60764668,0.0003,2]
[383893724,1757163043292,-25269.93257571,0.0003,2]
[383893725,1757163043301,-500.0,0.00030036,2]
[383893726,1757163043312,-154.38,0.00030039,2]
[383893727,1757163043321,-500.0,0.00030091,2]
[383893728,1757163043331,-500.0,0.00030146,2]
[383893729,1757163043341,-500.0,0.00030201,2]
[383893730,1757163043351,-500.0,0.00030256,2]
[383893731,1757163043360,-500.0,0.00030311,2]
[383893732,1757163043370,-500.0,0.00030366,2]
[383893733,1757163043379,-835.843262,0.00030404,2]
[383893734,1757163043388,-500.0,0.00030421,2]
[383893736,1757163043399,-500.0,0.00030476,2]
[383893738,1757163043408,-1000.0,0.00030521,5]
[383893739,1757163043417,-1000.0,0.00030521,5]
[383893740,1757163043426,-500.0,0.00030521,5]
[383893741,1757163043436,-200.0,0.00030529,2]
[383893742,1757163043445,-200.0,0.00030529,2]
[383893743,1757163043454,-500.0,0.00030531,2]
[383893744,1757163043463,-500.0,0.00030586,2]
[383893745,1757163043472,-487.75772993,0.00030754,14]
[383893746,1757163043482,-154.38,0.00031008,2]
[383893747,1757163043491,-729.8376123,0.00031068,5]
[383893748,1757163043501,-785.58133431,0.00031068,5]
[383893749,1757163043510,-200.0,0.00031077,2]
[383893750,1757163043520,-200.0,0.00031077,2]
[383893751,1757163043530,-250.0,0.00031201,2]
[383893752,1757163043539,-200.0,0.00031505,2]
[383893753,1757163043549,-693.12,0.00031513,29]
[383893754,1757163043559,-194.787,0.00031513,29]
[383893755,1757163043568,-200.0,0.00031625,2]
[383893756,1757163043577,-200.0,0.00031625,2]
[383893757,1757163043587,-150.0,0.00031927,2]
[383893758,1757163043597,-154.38,0.00031977,2]
[383893759,1757163043607,-200.0,0.00032173,2]
[383893760,1757163043617,-202.36626526,0.00032173,2]
[383893761,1757163043626,-1136.53,0.00032495,2]
[383893762,1757163043636,-207.4,0.0003272,2]
[383893763,1757163043646,-200.0,0.00032721,2]
[383893764,1757163043655,-154.38,0.00032946,2]
[383893765,1757163043665,-151.27,0.00032985,2]
[383893766,1757163043675,-158.56,0.00033236,2]
[383893767,1757163043684,-200.0,0.00033255,2]
[383893768,1757163043694,-200.0,0.00033269,2]
[383893769,1757163043704,-835.843262,0.00033595,2]
[383893770,1757163043714,-487.75772993,0.00033682,21]
[383893771,1757163043725,-154.38,0.00033915,2]
[383893772,1757163043734,-221.03,0.00034229,2]
[383893773,1757163043744,-151.27,0.00034634,2]
[383893774,1757163043753,-752.58,0.00034682,15]
[383893775,1757163043763,-154.38,0.00034884,2]
[383893776,1757163043773,-164.49,0.00034941,30]
[383893777,1757163043787,-522.5,0.00035019,2]
[383893778,1757163043797,-250.0,0.00035047,2]
[383893779,1757163043807,-163.91,0.00035269,120]
[383893780,1757163043817,-207.23,0.00035432,2]
[383893781,1757163043827,-200.0,0.00035459,2]
[383893782,1757163043837,-157.231816,0.00035616,10]
[383893783,1757163043847,-158.40516,0.00035616,10]
[383893784,1757163043856,-218.506684,0.00035616,10]
[383893785,1757163043866,-5000.0,0.00035883,2]
[383893786,1757163043876,-151.27,0.00036283,2]
[383893787,1757163043886,-500.0,0.00036329,2]
[383893788,1757163043895,-487.75772993,0.00036609,27]
[383893789,1757163043905,-500.0,0.00036959,2]
[383893790,1757163043916,-160.0,0.00037422,2]
[383893791,1757163043926,-160.0,0.00037422,2]
[383893792,1757163043936,-182.7974762,0.00037479,2]
[383893793,1757163043947,-44470.2738756,0.0003782,2]
[383893794,1757163043958,-151.27,0.00037932,2]
[383893795,1757163043968,-917.21880221,0.00038226,2]
[383893796,1757163043978,-1000.0,0.00038326,2]
[383893797,1757163043988,-1334.1763,0.00038326,2]
[383893798,1757163043997,-2905.5389,0.00038326,2]
[383893799,1757163044007,-1569.78871769,0.00038335,2]
[383893800,1757163044018,-159.4329573,0.00038335,2]
[383893801,1757163044027,-1660.0494428,0.00038346,10]
[383893802,1757163044037,-151.78537,0.0003835,2]
[383893803,1757163044046,-199.0,0.00038426,7]
[383893804,1757163044056,-151.78536,0.00038426,2]
[383893805,1757163044066,-500.0,0.00038435,5]
[383893806,1757163044076,-100000.0,0.00038435,2]
[383893807,1757163044085,-80000.0,0.00038435,2]
[383893808,1757163044096,-100000.0,0.00038435,2]
[383893809,1757163044107,-8447.5957578,0.00038446,2]
[383893810,1757163044117,-500.0,0.00038473,5]
[383893811,1757163044127,-500.0,0.00038473,5]
[383893812,1757163044137,-450.1885608,0.00038473,2]
[383893813,1757163044147,-500.0,0.00038473,5]
[383893814,1757163044157,-500.0,0.00038473,5]
[383893815,1757163044167,-534.60855404,0.00038473,5]
[383893816,1757163044177,-500.0,0.00038728,7]
[383893817,1757163044187,-151.78536,0.0003885,2]
[383893818,1757163044197,-399.08,0.00038929,120]
[383893819,1757163044208,-500.28586643,0.00038973,2]
[383893820,1757163044218,-159.552256,0.00038973,5]
[383893821,1757163044228,-549.45103083,0.00038973,5]
[383893822,1757163044242,-500.0,0.00038973,5]
[383893823,1757163044252,-9837.10497088,0.0003899,3]
[383893824,1757163044263,-95379.16431389,0.00039,2]
[383893825,1757163044272,-500.0,0.00039021,5]
[383893826,1757163044282,-1000.29937495,0.00039021,5]
[383893827,1757163044292,-500.0,0.00039021,5]
[383893828,1757163044301,-500.0,0.00039021,5]
[383893829,1757163044312,-500.0,0.00039061,7]
[383893830,1757163044321,-199.0,0.0003911,9]
[383893831,1757163044332,-917.21880212,0.00039203,2]
[383893832,1757163044344,-156.09,0.00039239,2]
[383893833,1757163044355,-1569.78871764,0.000393,2]
[383893834,1757163044365,-151.78537,0.0003935,2]
[383893835,1757163044375,-500.0,0.00039521,5]
[383893836,1757163044386,-487.75772993,0.00039536,33]
[383893837,1757163044396,-151.27,0.00039582,2]
[383893838,1757163044406,-1229.63812136,0.00039785,3]
[383893839,1757163044416,-328.62,0.00039795,11]
[383893840,1757163044426,-151.78536,0.0003985,2]
[383893841,1757163044437,-300.0,0.0004,14]
[383893842,1757163044447,-742.99,0.0004005,5]
[383893843,1757163044456,-917.21880212,0.00040181,15]
[383893844,1757163044466,-592.5,0.00040223,30]
[383893845,1757163044476,-1569.78871764,0.00040266,15]
[383893846,1757163044486,-595.08,0.00040286,30]
[383893847,1757163044496,-300.0,0.00040356,100]
[383893848,1757163044506,-220.60114353,0.00040438,120]
[383893849,1757163044516,-500.0,0.00040552,30]
[383893850,1757163044525,-1229.63812136,0.00040775,3]
[383893851,1757163044535,-5131.4089297,0.00040785,2]
[383893852,1757163044545,-1036.80335101,0.00041,120]
[383893853,1757163044556,-163.91,0.00041147,120]
[383893854,1757163044566,-917.21880212,0.00041158,15]
[383893855,1757163044576,-278.0,0.0004122,2]
[383893856,1757163044585,-1569.78871764,0.00041231,15]
[383893857,1757163044595,-606.83,0.0004129,30]
[383893858,1757163044605,-158.56,0.00041545,2]
[383893859,1757163044615,-500.0,0.00041632,30]
[383893860,1757163044625,-220.60114353,0.00041634,120]
[383893861,1757163044635,-151.0,0.00041742,2]
[383893862,1757163044645,-160.0,0.00041742,2]
[383893863,1757163044655,-240.98879535,0.00041742,2]
[383893864,1757163044664,-151.0,0.00041742,2]
[383893865,1757163044674,-257.91778498,0.00041742,2]
[383893866,1757163044687,-151.0,0.00041742,2]
[383893867,1757163044697,-322.6107,0.00041742,2]
[383893868,1757163044707,-151.0,0.00041742,2]
[383893869,1757163044717,-670.58624095,0.00041742,2]
[383893870,1757163044728,-159.4329573,0.00041857,28]
[383893871,1757163044738,-500.0,0.00041934,30]
[383893872,1757163044748,-906.0,0.00042,2]
[383893873,1757163044759,-1000.0,0.000421,2]
[383893874,1757163044769,-917.21880212,0.00042136,15]
[383893875,1757163044779,-1569.78871764,0.00042196,15]
[383893876,1757163044789,-711.08445897,0.000422,5]
[383893877,1757163044799,-164.53,0.00042243,14]
[383893878,1757163044809,-151.0,0.0004229,2]
[383893879,1757163044819,-279.29685351,0.0004229,2]
[383893880,1757163044829,-1229.63812136,0.0004235,3]
[383893881,1757163044840,-500.0,0.0004236,30]
[383893882,1757163044850,-888.0,0.0004241,2]
[383893883,1757163044860,-487.75772993,0.00042463,39]
[383893884,1757163044869,-205.66,0.00042505,14]
[383893885,1757163044879,-3730.0,0.00042652,7]